fUSD/lending_fUSD_20240426
["ID","MTS","AMOUNT","RATE_DAILY","PERIOD"]
[323579437,1714093851521,-201.41,0.00011232,2]
[323579438,1714093851531,-153.02,0.00011232,2]
[323579439,1714093851546,-500.0,0.00011232,2]
[323579440,1714093851556,-286.22819243,0.00011232,2]
[323579441,1714093851565,-500.0,0.00011232,2]
[323579442,1714093851574,-500.0,0.00011232,2]
[323579443,1714093851584,-500.0,0.00011232,2]
[323579444,1714093851593,-500.0,0.00011232,2]
[323579445,1714093851602,-500.0,0.00011232,2]
[323579446,1714093851612,-500.0,0.00011232,2]
[323579447,1714093851622,-500.0,0.00011232,2]
[323579448,1714093851633,-500.0,0.00011232,2]
[323579449,1714093851642,-216.1,0.00011232,2]
[323579450,1714093851652,-603.56,0.00011232,2]
[323579451,1714093851661,-500.0,0.00011232,2]
[323579452,1714093851671,-500.0,0.00011232,2]
[323579453,1714093851684,-500.0,0.00011232,2]
[323579454,1714093851694,-500.0,0.00011232,2]
[323579455,1714093851704,-500.0,0.00011232,2]
[323579456,1714093851715,-500.0,0.00011232,2]
[323579457,1714093851726,-500.0,0.00011232,2]
[323579458,1714093851736,-500.0,0.00011232,2]
[323579459,1714093851748,-500.0,0.00011232,2]
[323579460,1714093851757,-500.0,0.00011232,2]
[323579461,1714093851769,-500.0,0.00011232,2]
[323579462,1714093851780,-634.73,0.00011232,2]
[323579463,1714093851792,-500.0,0.00011232,2]
[323579464,1714093851804,-726.11,0.00011232,2]
[323579465,1714093851814,-995.85,0.00011232,2]
[323579466,1714093851826,-500.0,0.00011232,2]
[323579467,1714093851839,-500.0,0.00011232,2]
[323579468,1714093851850,-500.0,0.00011232,2]
[323579469,1714093851860,-500.0,0.00011232,2]
[323579470,1714093851870,-500.0,0.00011232,2]
[323579471,1714093851881,-500.0,0.00011232,2]
[323579472,1714093851892,-500.0,0.00011232,2]
[323579473,1714093851903,-500.0,0.00011232,2]
[323579474,1714093851914,-1118.04,0.00011232,2]
[323579475,1714093851926,-500.0,0.00011232,2]
[323579476,1714093851936,-500.0,0.00011232,2]
[323579477,1714093851948,-215.67225327,0.00011232,2]
[323579478,1714093851959,-500.0,0.00011232,2]
[323579479,1714093851969,-500.0,0.00011232,2]
[323579480,1714093851979,-500.0,0.00011232,2]
[323579481,1714093851989,-500.0,0.00011232,2]
[323579482,1714093852000,-500.0,0.00011232,2]
[323579483,1714093852010,-500.0,0.00011232,2]
[323579484,1714093852021,-500.0,0.00011232,2]
[323579485,1714093852031,-500.0,0.00011232,2]
[323579486,1714093852041,-500.0,0.00011232,2]
[323579487,1714093852050,-500.0,0.00011232,2]
[323579488,1714093852060,-500.0,0.00011232,2]
[323579489,1714093852069,-500.0,0.00011232,2]
[323579490,1714093852079,-500.0,0.00011232,2]
[323579491,1714093852089,-893.31,0.00011232,2]
[323579492,1714093852099,-500.0,0.00011232,2]
[323579493,1714093852110,-500.0,0.00011232,2]
[323579494,1714093852120,-500.0,0.00011232,2]
[323579495,1714093852130,-500.0,0.00011232,2]
[323579496,1714093852139,-500.0,0.00011232,2]
[323579497,1714093852148,-500.0,0.00011232,2]
[323579498,1714093852158,-500.0,0.00011232,2]
[323579499,1714093852168,-500.0,0.00011232,2]
[323579500,1714093852179,-500.0,0.00011232,2]
[323579501,1714093852189,-500.0,0.00011232,2]
[323579502,1714093852200,-500.0,0.00011232,2]
[323579503,1714093852210,-500.0,0.00011232,2]
[323579504,1714093852220,-500.0,0.00011232,2]
[323579505,1714093852230,-500.0,0.00011232,2]
[323579506,1714093852240,-500.0,0.00011232,2]
[323579507,1714093852251,-500.0,0.00011232,2]
[323579508,1714093852262,-500.0,0.00011232,2]
[323579509,1714093852273,-500.0,0.00011232,2]
[323579510,1714093852282,-150.0,0.00011232,2]
[323579511,1714093852293,-558.83,0.00011232,2]
[323579512,1714093852303,-500.0,0.00011232,2]
[323579513,1714093852314,-599.99859693,0.00011232,2]
[323579514,1714093852324,-163.14302258,0.00011232,2]
[323579515,1714093852334,-500.0,0.00011232,2]
[323579516,1714093852344,-500.0,0.00011232,2]
[323579517,1714093852353,-500.0,0.00011232,2]
[323579518,1714093852363,-500.0,0.00011232,2]
[323579519,1714093852372,-500.0,0.00011232,2]
[323579520,1714093852383,-500.0,0.00011232,2]
[323579521,1714093852395,-500.0,0.00011232,2]
[323579522,1714093852405,-500.0,0.00011232,2]
[323579523,1714093852416,-500.0,0.00011232,2]
[323579524,1714093852428,-500.0,0.00011232,2]
[323579525,1714093852439,-500.0,0.00011232,2]
[323579526,1714093852450,-500.0,0.00011232,2]
[323579527,1714093852462,-500.0,0.00011232,2]
[323579528,1714093852472,-500.0,0.00011232,2]
[323579529,1714093852493,-500.0,0.00011232,2]
[323579530,1714093852506,-500.0,0.00011232,2]
[323579531,1714093852517,-500.0,0.00011232,2]
[323579532,1714093852527,-500.0,0.00011232,2]
[323579533,1714093852539,-791.69,0.00011232,2]
[323579534,1714093852552,-180.18725915,0.00011232,2]
[323579535,1714093852562,-500.0,0.00011232,2]
[323579536,1714093852574,-707.72,0.00011232,2]
[323579537,1714093852585,-500.0,0.00011232,2]
[323579538,1714093852598,-500.0,0.00011232,2]
[323579539,1714093852611,-500.0,0.00011232,2]
[323579540,1714093852624,-500.0,0.00011232,2]
[323579541,1714093852635,-664.0,0.00011232,2]
[323579542,1714093852646,-500.0,0.00011232,2]
[323579543,1714093852656,-664.67,0.00011232,2]
[323579544,1714093852667,-505.63893658,0.00011232,2]
[323579545,1714093852678,-500.0,0.00011232,2]
[323579546,1714093852688,-500.0,0.00011232,2]
[323579547,1714093852699,-500.0,0.00011232,2]
[323579548,1714093852709,-767.45,0.00011232,2]
[323579549,1714093852721,-500.0,0.00011232,2]
[323579550,1714093852733,-500.0,0.00011232,2]
[323579551,1714093852745,-500.0,0.00011232,2]
[323579552,1714093852756,-597.29,0.00011232,2]
[323579553,1714093852767,-500.0,0.00011232,2]
[323579554,1714093852778,-500.0,0.00011232,2]
[323579555,1714093852789,-500.0,0.00011232,2]
[323579556,1714093852799,-424.07,0.00011232,2]
[323579557,1714093852809,-500.0,0.00011232,2]
[323579558,1714093852819,-500.0,0.00011232,2]
[323579559,1714093852830,-500.0,0.00011232,2]
[323579560,1714093852841,-500.0,0.00011232,2]
[323579561,1714093852852,-500.0,0.00011232,2]
[323579562,1714093852863,-500.0,0.00011232,2]
[323579563,1714093852874,-500.0,0.00011232,2]
[323579564,1714093852884,-500.0,0.00011232,2]
[323579565,1714093852894,-500.0,0.00011232,2]
[323579566,1714093852903,-500.0,0.00011232,2]
[323579567,1714093852915,-500.0,0.00011232,2]
[323579568,1714093852928,-999.41,0.00011232,2]
[323579569,1714093852938,-500.0,0.00011232,2]
[323579570,1714093852948,-500.0,0.00011232,2]
[323579571,1714093852959,-500.0,0.00011232,2]
[323579572,1714093852969,-500.0,0.00011232,2]
[323579573,1714093852979,-500.0,0.00011232,2]
[323579574,1714093852990,-500.0,0.00011232,2]
[323579575,1714093853000,-551.78,0.00011232,2]
[323579576,1714093853011,-500.0,0.00011232,2]
[323579577,1714093853022,-578.74,0.00011232,2]
[323579578,1714093853032,-500.0,0.00011232,2]
[323579579,1714093853042,-500.0,0.00011232,2]
[323579580,1714093853053,-596.22,0.00011232,2]
[323579581,1714093853064,-500.0,0.00011232,2]
[323579582,1714093853075,-500.0,0.00011232,2]
[323579583,1714093853086,-1043.18,0.00011232,2]
[323579584,1714093853096,-500.0,0.00011232,2]
[323579585,1714093853106,-500.0,0.00011232,2]
[323579586,1714093853116,-500.0,0.00011232,2]
[323579587,1714093853128,-500.0,0.00011232,2]
[323579588,1714093853139,-500.0,0.00011232,2]
[323579589,1714093853149,-500.0,0.00011232,2]
[323579590,1714093853159,-589.71,0.00011232,2]
[323579591,1714093853171,-506.83998659,0.00011232,2]
[323579592,1714093853184,-500.0,0.00011232,2]
[323579593,1714093853194,-500.0,0.00011232,2]
[323579594,1714093853203,-829.05,0.00011232,2]
[323579595,1714093853213,-500.0,0.00011232,2]
[323579596,1714093853223,-500.0,0.00011232,2]
[323579597,1714093853233,-500.0,0.00011232,2]
[323579598,1714093853243,-500.0,0.00011232,2]
[323579599,1714093853252,-500.0,0.00011232,2]
[323579600,1714093853262,-500.0,0.00011232,2]
[323579601,1714093853272,-500.0,0.00011232,2]
[323579602,1714093853282,-523.74,0.00011232,2]
[323579603,1714093853293,-500.0,0.00011232,2]
[323579604,1714093853303,-500.0,0.00011232,2]
[323579605,1714093853315,-500.0,0.00011232,2]
[323579606,1714093853325,-500.0,0.00011232,2]
[323579607,1714093853334,-500.0,0.00011232,2]
[323579608,1714093853344,-500.0,0.00011232,2]
[323579609,1714093853353,-500.0,0.00011232,2]
[323579610,1714093853362,-593.93,0.00011232,2]
[323579611,1714093853372,-500.0,0.00011232,2]
[323579612,1714093853380,-500.0,0.00011232,2]
[323579613,1714093853390,-500.0,0.00011232,2]
[323579614,1714093853399,-500.0,0.00011232,2]
[323579615,1714093853409,-500.0,0.00011232,2]
[323579616,1714093853419,-500.0,0.00011232,2]
[323579617,1714093853432,-619.38,0.00011232,2]
[323579618,1714093853442,-500.0,0.00011232,2]
[323579619,1714093853451,-500.0,0.00011232,2]
[323579620,1714093853461,-500.0,0.00011232,2]
[323579621,1714093853470,-612.83,0.00011232,2]
[323579622,1714093853479,-500.0,0.00011232,2]
[323579623,1714093853488,-693.35,0.00011232,2]
[323579624,1714093853497,-500.0,0.00011232,2]
[323579625,1714093853506,-500.0,0.00011232,2]
[323579626,1714093853515,-500.0,0.00011232,2]
[323579627,1714093853538,-500.0,0.00011232,2]
[323579628,1714093853553,-500.0,0.00011232,2]
[323579629,1714093853568,-500.0,0.00011232,2]
[323579630,1714093853580,-500.0,0.00011232,2]
[323579631,1714093853592,-500.0,0.00011232,2]
[323579632,1714093853606,-500.0,0.00011232,2]
[323579633,1714093853621,-500.0,0.00011232,2]
[323579634,1714093853636,-500.0,0.00011232,2]
[323579635,1714093853650,-500.0,0.00011232,2]
[323579636,1714093853665,-151.0,0.00011232,2]
[323579637,1714093853678,-151.0,0.00011232,2]
[323579638,1714093853689,-395.07,0.00011232,2]
[323579639,1714093853703,-500.0,0.00011232,2]
[323579640,1714093853715,-512.53,0.00011232,2]
[323579641,1714093853728,-500.0,0.00011232,2]
[323579642,1714093853745,-500.0,0.00011232,2]
[323579643,1714093853759,-500.0,0.00011232,2]
[323579644,1714093853771,-500.0,0.00011232,2]
[323579645,1714093853781,-486.9732883,0.00011232,2]
[323579646,1714093853865,-411.5667117,0.00011232,2]
[323579647,1714093853878,-500.0,0.00011232,2]
[323579648,1714093853891,-500.0,0.00011232,2]
[323579649,1714093853904,-439.86390123,0.00011232,2]
[323579650,1714093853921,-60.13609877,0.00011232,2]
[323579651,1714093853936,-864.03,0.00011232,2]
[323579652,1714093853948,-500.0,0.00011232,2]
[323579653,1714093853959,-500.0,0.00011232,2]
[323579654,1714093853969,-500.0,0.00011232,2]
[323579655,1714093853981,-15105.63,0.00011232,2]
[323579656,1714093853993,-756.18,0.00011232,2]
[323579657,1714093854006,-500.0,0.00011232,2]
[323579658,1714093854022,-500.0,0.00011232,2]
[323579659,1714093854033,-500.0,0.00011232,2]
[323579660,1714093854044,-500.0,0.00011232,2]
[323579661,1714093854055,-500.0,0.00011232,2]
[323579662,1714093854079,-500.0,0.00011232,2]
[323579663,1714093854092,-500.0,0.00011232,2]
[323579664,1714093854105,-500.0,0.00011232,2]
[323579665,1714093854118,-827.16,0.00011232,2]
[323579666,1714093854130,-1154.71,0.00011232,2]
[323579667,1714093854143,-500.0,0.00011232,2]
[323579668,1714093854156,-500.0,0.00011232,2]
[323579669,1714093854168,-1326.1,0.00011232,2]
[323579670,1714093854181,-500.0,0.00011232,2]
[323579671,1714093854193,-500.0,0.00011232,2]
[323579672,1714093854206,-500.0,0.00011232,2]
[323579673,1714093854218,-500.0,0.00011232,2]
[323579674,1714093854231,-500.0,0.00011232,2]
[323579675,1714093854243,-4190.38,0.00011232,2]
[323579676,1714093854255,-916.05,0.00011232,2]
[323579677,1714093854268,-500.0,0.00011232,2]
[323579678,1714093854280,-1635.64,0.00011232,2]
[323579679,1714093854292,-500.0,0.00011232,2]
[323579680,1714093854306,-1024.0,0.00011232,2]
[323579681,1714093854317,-5612.99,0.00011232,2]
[323579682,1714093854330,-500.0,0.00011232,2]
[323579683,1714093854341,-500.0,0.00011232,2]
[323579684,1714093854353,-909.68,0.00011232,2]
[323579685,1714093854366,-796.9,0.00011232,2]
[323579686,1714093854379,-500.0,0.00011232,2]
[323579687,1714093854391,-500.0,0.00011232,2]
[323579688,1714093854403,-500.0,0.00011232,2]
[323579689,1714093854416,-500.0,0.00011232,2]
[323579690,1714093854428,-1042.19,0.00011232,2]
[323579691,1714093854440,-500.0,0.00011232,2]
[323579692,1714093854452,-285.28842497,0.00011232,2]
[323579693,1714093854476,-277.32157503,0.00011232,2]
[323579694,1714093854488,-481.25097867,0.00011232,2]
[323579695,1714093855216,-18.74902133,0.00011232,2]
[323579696,1714093855228,-500.0,0.00011232,2]
[323579697,1714093855239,-335.0044805,0.00011232,2]
[323579698,1714093855254,-164.9955195,0.00011232,2]
[323579699,1714093855265,-500.0,0.00011232,2]
[323579700,1714093855277,-500.0,0.00011232,2]
[323579701,1714093855289,-819.5,0.00011232,2]
[323579702,1714093855300,-500.0,0.00011232,2]
[323579703,1714093855312,-943.83,0.00011232,2]
[323579704,1714093855323,-500.0,0.00011232,2]
[323579705,1714093855334,-500.0,0.00011232,2]
[323579706,1714093855346,-500.0,0.00011232,2]
[323579707,1714093855358,-500.0,0.00011232,2]
[323579708,1714093855370,-500.0,0.00011232,2]
[323579709,1714093855381,-500.0,0.00011232,2]
[323579710,1714093855392,-624.27,0.00011232,2]
[323579711,1714093855404,-500.0,0.00011232,2]
[323579712,1714093855415,-657.8,0.00011232,2]
[323579713,1714093855429,-315.43833205,0.00011232,2]
[323579714,1714093855440,-2661.57,0.00011232,2]
[323579715,1714093855452,-512.09,0.00011232,2]
[323579716,1714093855463,-500.0,0.00011232,2]
[323579717,1714093855473,-500.0,0.00011232,2]
[323579718,1714093855484,-500.0,0.00011232,2]
[323579719,1714093855495,-1522.52,0.00011232,2]
[323579720,1714093855506,-500.0,0.00011232,2]
[323579721,1714093855517,-500.0,0.00011232,2]
[323579722,1714093855528,-500.0,0.00011232,2]
[323579723,1714093855540,-868.46,0.00011232,2]
[323579724,1714093855552,-500.0,0.00011232,2]
[323579725,1714093855564,-589.31,0.00011232,2]
[323579726,1714093855574,-500.0,0.00011232,2]
[323579727,1714093855587,-501.17928128,0.00011232,2]
[323579728,1714093855598,-500.0,0.00011232,2]
[323579729,1714093855609,-725.74,0.00011232,2]
[323579730,1714093855621,-500.0,0.00011232,2]
[323579731,1714093855633,-1953.87,0.00011232,2]
[323579732,1714093855644,-359.54441116,0.00011232,2]
[323579733,1714093855655,-500.0,0.00011232,2]
[323579734,1714093855666,-500.0,0.00011232,2]
[323579735,1714093855677,-1056.83,0.00011232,2]
[323579736,1714093855688,-500.0,0.00011232,2]
[323579737,1714093855698,-799.23,0.00011232,2]
[323579738,1714093855707,-500.0,0.00011232,2]
[323579739,1714093855716,-500.0,0.00011232,2]
[323579740,1714093855731,-500.0,0.00011232,2]
[323579741,1714093855740,-1460.85,0.00011232,2]
[323579742,1714093855749,-218.83820142,0.00011232,2]
[323579743,1714093855759,-500.0,0.00011232,2]
[323579744,1714093855770,-500.0,0.00011232,2]
[323579745,1714093855779,-505.11537152,0.00011232,2]
[323579746,1714093855788,-500.0,0.00011232,2]
[323579747,1714093855798,-500.0,0.00011232,2]
[323579748,1714093855807,-500.0,0.00011232,2]
[323579749,1714093855817,-500.0,0.00011232,2]
[323579750,1714093855826,-500.0,0.00011232,2]
[323579751,1714093855835,-500.0,0.00011232,2]
[323579752,1714093855846,-3705.86,0.00011232,2]
[323579753,1714093855857,-500.0,0.00011232,2]
[323579754,1714093855868,-701.36,0.00011232,2]
[323579755,1714093855877,-500.0,0.00011232,2]
[323579756,1714093855887,-500.0,0.00011232,2]
[323579757,1714093855897,-500.0,0.00011232,2]
[323579758,1714093855906,-500.0,0.00011232,2]
[323579759,1714093855916,-500.0,0.00011232,2]
[323579760,1714093855925,-13192.58,0.00011232,2]
[323579761,1714093855936,-500.0,0.00011232,2]
[323579762,1714093855946,-500.0,0.00011232,2]
[323579763,1714093855957,-1762.47,0.00011232,2]
[323579764,1714093855966,-500.0,0.00011232,2]
[323579765,1714093855976,-2206.54,0.00011232,2]
[323579766,1714093855986,-500.0,0.00011232,2]
[323579767,1714093855996,-500.0,0.00011232,2]
[323579768,1714093856006,-500.0,0.00011232,2]
[323579769,1714093856016,-786.5,0.00011232,2]
[323579770,1714093856028,-510.5,0.00011232,2]
[323579771,1714093856038,-500.0,0.00011232,2]
[323579772,1714093856047,-500.0,0.00011232,2]
[323579773,1714093856057,-500.0,0.00011232,2]
[323579774,1714093856068,-500.0,0.00011232,2]
[323579775,1714093856078,-888.83,0.00011232,2]
[323579776,1714093856088,-500.0,0.00011232,2]
[323579777,1714093856098,-500.0,0.00011232,2]
[323579778,1714093856109,-514.2,0.00011232,2]
[323579779,1714093856119,-500.0,0.00011232,2]
[323579780,1714093856582,-500.0,0.00011232,2]
[323579781,1714093856614,-500.0,0.00011232,2]
[323579782,1714093856635,-500.0,0.00011232,2]
[323579783,1714093856650,-500.0,0.00011232,2]
[323579784,1714093856662,-500.0,0.00011232,2]
[323579785,1714093856672,-500.0,0.00011232,2]
[323579786,1714093856685,-552.23,0.00011232,2]
[323579787,1714093856694,-500.0,0.00011232,2]
[323579788,1714093856706,-500.0,0.00011232,2]
[323579789,1714093856716,-546.05,0.00011232,2]
[323579790,1714093856726,-500.0,0.00011232,2]
[323579791,1714093856737,-500.0,0.00011232,2]
[323579792,1714093856748,-500.0,0.00011232,2]
[323579793,1714093856758,-1358.35,0.00011232,2]
[323579794,1714093856768,-500.0,0.00011232,2]
[323579795,1714093856779,-500.0,0.00011232,2]
[323579796,1714093856789,-500.0,0.00011232,2]
[323579797,1714093856799,-610.37,0.00011232,2]
[323579798,1714093856809,-651.92,0.00011232,2]
[323579799,1714093856820,-500.0,0.00011232,2]
[323579800,1714093856830,-970.46,0.00011232,2]
[323579801,1714093856842,-847.49,0.00011232,2]
[323579802,1714093856853,-500.0,0.00011232,2]
[323579803,1714093856863,-500.0,0.00011232,2]
[323579804,1714093856874,-500.0,0.00011232,2]
[323579805,1714093856884,-500.0,0.00011232,2]
[323579806,1714093856894,-523.77,0.00011232,2]
[323579807,1714093856905,-561.56,0.00011232,2]
[323579808,1714093856915,-500.0,0.00011232,2]
[323579809,1714093856926,-777.84,0.00011232,2]
[323579810,1714093856939,-500.0,0.00011232,2]
[323579811,1714093856951,-928.84,0.00011232,2]
[323579812,1714093856961,-500.0,0.00011232,2]
[323579813,1714093856971,-1210.92,0.00011232,2]
[323579814,1714093856981,-500.0,0.00011232,2]
[323579815,1714093856991,-500.0,0.00011232,2]
[323579816,1714093857000,-7360.96,0.00011232,2]
[323579817,1714093857010,-500.0,0.00011232,2]
[323579818,1714093857020,-2180.38,0.00011232,2]
[323579819,1714093857031,-751.46,0.00011232,2]
[323579820,1714093857042,-500.0,0.00011232,2]
[323579821,1714093857053,-500.0,0.00011232,2]
[323579822,1714093857063,-4116.92,0.00011232,2]
[323579823,1714093857074,-913.07,0.00011232,2]
[323579824,1714093857084,-647.14,0.00011232,2]
[323579825,1714093857094,-852.39,0.00011232,2]
[323579826,1714093857104,-500.0,0.00011232,2]
[323579827,1714093857114,-500.0,0.00011232,2]
[323579828,1714093857123,-766.14,0.00011232,2]
[323579829,1714093857132,-500.0,0.00011232,2]
[323579830,1714093857141,-500.0,0.00011232,2]
[323579831,1714093857151,-500.0,0.00011232,2]
[323579832,1714093857161,-1272.01,0.00011232,2]
[323579833,1714093857170,-629.47,0.00011232,2]
[323579834,1714093857182,-500.0,0.00011232,2]
[323579835,1714093857192,-500.0,0.00011232,2]
[323579836,1714093857201,-335.76808,0.00011232,2]
[323579837,1714093857210,-967.95,0.00011232,2]
[323579838,1714093857219,-1219.7,0.00011232,2]
[323579839,1714093857228,-595.9,0.00011232,2]
[323579840,1714093857238,-557.88,0.00011232,2]
[323579841,1714093857247,-500.0,0.00011232,2]
[323579842,1714093857256,-551.49,0.00011232,2]
[323579843,1714093857265,-500.0,0.00011232,2]
[323579844,1714093857274,-613.53,0.00011232,2]
[323579845,1714093857284,-500.0,0.00011232,2]
[323579846,1714093857294,-3064.89,0.00011232,2]
[323579847,1714093857304,-500.0,0.00011232,2]
[323579848,1714093857313,-500.0,0.00011232,2]
[323579849,1714093857323,-878.81,0.00011232,2]
[323579850,1714093857332,-500.0,0.00011232,2]
[323579851,1714093857341,-500.0,0.00011232,2]
[323579852,1714093857351,-500.0,0.00011232,2]
[323579853,1714093857360,-500.0,0.00011232,2]
[323579854,1714093857369,-500.0,0.00011232,2]
[323579855,1714093857378,-500.0,0.00011232,2]
[323579856,1714093857387,-538.06,0.00011232,2]
[323579857,1714093857396,-500.0,0.00011232,2]
[323579858,1714093857405,-500.0,0.00011232,2]
[323579859,1714093857414,-1135.24,0.00011232,2]
[323579860,1714093857424,-1106.19,0.00011232,2]
[323579861,1714093857434,-500.0,0.00011232,2]
[323579862,1714093857443,-1685.81,0.00011232,2]
[323579863,1714093857451,-917.6,0.00011232,2]
[323579864,1714093857460,-530.79,0.00011232,2]
[323579865,1714093857469,-500.0,0.00011232,2]
[323579866,1714093857478,-963.66,0.00011232,2]
[323579867,1714093857489,-500.0,0.00011232,2]
[323579868,1714093857498,-500.0,0.00011232,2]
[323579869,1714093857507,-500.0,0.00011232,2]
[323579870,1714093857516,-627.53,0.00011232,2]
[323579871,1714093857526,-1307.96,0.00011232,2]
[323579872,1714093857535,-683.33,0.00011232,2]
[323579873,1714093857548,-500.0,0.00011232,2]
[323579874,1714093857557,-500.0,0.00011232,2]
[323579875,1714093857566,-500.0,0.00011232,2]
[323579876,1714093857575,-500.0,0.00011232,2]
[323579877,1714093857585,-500.0,0.00011232,2]
[323579878,1714093857594,-500.0,0.00011232,2]
[323579879,1714093857603,-500.0,0.00011232,2]
[323579880,1714093857613,-500.0,0.00011232,2]
[323579881,1714093857623,-500.0,0.00011232,2]
[323579882,1714093857632,-500.0,0.00011232,2]
[323579883,1714093857641,-500.0,0.00011232,2]
[323579884,1714093857651,-1676.51,0.00011232,2]
[323579885,1714093857660,-500.0,0.00011232,2]
[323579886,1714093857670,-500.0,0.00011232,2]
[323579887,1714093857680,-500.0,0.00011232,2]
[323579888,1714093857688,-500.0,0.00011232,2]
[323579889,1714093857698,-840.73,0.00011232,2]
[323579890,1714093857707,-1825.32,0.00011232,2]
[323579891,1714093857717,-500.0,0.00011232,2]
[323579892,1714093857726,-1065.33,0.00011232,2]
[323579893,1714093857734,-582.24,0.00011232,2]
[323579894,1714093857744,-2686.14,0.00011232,2]
[323579895,1714093857753,-624.08,0.00011232,2]
[323579896,1714093857762,-500.0,0.00011232,2]
[323579897,1714093857771,-500.0,0.00011232,2]
[323579898,1714093857781,-3151.16,0.00011232,2]
[323579899,1714093857790,-500.0,0.00011232,2]
[323579900,1714093857799,-500.0,0.00011232,2]
[323579901,1714093857809,-500.0,0.00011232,2]
[323579902,1714093857818,-500.0,0.00011232,2]
[323579903,1714093857827,-989.28,0.00011232,2]
[323579904,1714093857836,-500.0,0.00011232,2]
[323579905,1714093857846,-500.0,0.00011232,2]
[323579906,1714093857855,-500.0,0.00011232,2]
[323579907,1714093857864,-910.62,0.00011232,2]
[323579908,1714093857873,-500.0,0.00011232,2]
[323579909,1714093857882,-500.0,0.00011232,2]
[323579910,1714093857891,-562.64,0.00011232,2]
[323579911,1714093857900,-517.64,0.00011232,2]
[323579912,1714093857910,-500.0,0.00011232,2]
[323579913,1714093857918,-500.0,0.00011232,2]
[323579914,1714093857928,-1045.5,0.00011232,2]
[323579915,1714093857938,-3898.31,0.00011232,2]
[323579916,1714093857948,-500.0,0.00011232,2]
[323579917,1714093857957,-7599.2,0.00011232,2]
[323579918,1714093857966,-5127.59,0.00011232,2]
[323579919,1714093857976,-1179.16,0.00011232,2]
[323579920,1714093857985,-914.42,0.00011232,2]
[323579921,1714093857994,-2523.14,0.00011232,2]
[323579922,1714093858003,-3281.45,0.00011232,2]
[323579923,1714093858012,-150.0,0.00011246,2]
[323579924,1714093858021,-1000.0,0.000113,2]
[323579925,1714093858030,-168.20136767,0.0001139,2]
[323579926,1714093858039,-414.6,0.000114,2]
[323579927,1714093858048,-1795.36357067,0.00011403,2]
[323579928,1714093858366,-252.55483851,0.00011403,2]
[323579929,1714093858394,-454.15400101,0.00011403,2]
[323579930,1714093858406,-550.82590628,0.00011403,2]
[323579931,1714093858419,-730.74566254,0.00011403,2]
[323579932,1714093858461,-6216.35602099,0.00011403,2]
[323579933,1714093858470,-171.34701633,0.00011406,2]
[323579934,1714093858481,-4972.46686,0.00011406,2]
[323579935,1714093858493,-10000.0,0.00011406,2]
[323579936,1714093858502,-1000.0,0.00011414,2]